Cogmind - Beta 12 @@@ ROGUE MODE // 2023.06.15 @ 18:18:55 Player: Mr Goldstein Result: Self-destructed Performance ------------- Evolutions (4) 2000 Regions Visited (11) 2200 Robots Destroyed (4) 20 Value Destroyed (67) 67 Prototype IDs (214) 4280 Alien Tech Used (0) 0 Bonus (3800) 3800 TOTAL SCORE: 12367 Bonus ------- Entered DSFs 500 Met Data Miner 300 Used Data Conduit 3000 Cogmind --------- Core Integrity 151/850 Matter 289/300 Energy 99/100 System Corruption 0% Temperature Cool (0) Movement Core (50) Location -6/Data Miner Parts ------- > --- POWER (1) -------- (None) > --- PROPULSION (6) --- (None) > --- UTILITY (6) ------ Enhanced Optical Array Makeshift Terrain Scan Processor Advanced Terrain Scan Processor 0b10 Decoder Chip [Scout] Hacking Suite > --- WEAPON (2) ------- (None) > --- INVENTORY (5) ---- Medium Storage Unit Peak State ------------ > --- POWER ------------ (None) > --- PROPULSION ------- Gravmag Array > --- UTILITY ---------- Enhanced Optical Array Improved Terrain Scanner Makeshift Terrain Scan Processor Advanced Terrain Scan Processor Hacking Suite > --- WEAPON ----------- Grenade Launcher > --- INVENTORY -------- Medium Storage Unit [Rating: 30] Favorites ----------- Power Light Ion Engine Engine Light Ion Engine Propulsion Flight Unit Hover Unit Airjet Flight Unit Flight Unit Utility Hacking Suite Device Improved Terrain Scanner Processor Advanced Terrain Scan Processor Hackware Hacking Suite Weapon Grenade Launcher Launcher Grenade Launcher Build | -11 -10 -10 -10 -9 -8 -7 -7 -6 -6 -6 -6 ------- Run | Jun Mat Min Exi Min Mat Fac DSF Fac Low Low Dat Slots Evolved 8 | . . . . . 4 2 . 2 . . . Power . | . . . . . . . . . . . . Propulsion 4 | . . . . . 2 1 . 1 . . . Utility 4 | . . . . . 2 1 . 1 . . . Weapon . | . . . . . . . . . . . . Parts Attached 15 | . 1 4 . . . 1 . 4 3 2 . Power 1 | . . 1 . . . . . . . . . Engine 1 | . . 1 . . . . . . . . . Core . | . . . . . . . . . . . . Reactor . | . . . . . . . . . . . . Propulsion 5 | . . 2 . . . 1 . 1 . 1 . Treads . | . . . . . . . . . . . . Leg . | . . . . . . . . . . . . Wheel . | . . . . . . . . . . . . Hover 2 | . . . . . . 1 . 1 . . . Flight 3 | . . 2 . . . . . . . 1 . Utility 6 | . . . . . . . . 3 2 1 . Device 1 | . . . . . . . . . 1 . . Storage . | . . . . . . . . . . . . Processor 4 | . . . . . . . . 2 1 1 . Hackware 1 | . . . . . . . . 1 . . . Protection . | . . . . . . . . . . . . Artifact . | . . . . . . . . . . . . Weapon 3 | . 1 1 . . . . . . 1 . . Energy Gun . | . . . . . . . . . . . . Energy Cannon . | . . . . . . . . . . . . Ballistic Gun . | . . . . . . . . . . . . Ballistic Cannon . | . . . . . . . . . . . . Launcher 3 | . 1 1 . . . . . . 1 . . Special Weapon . | . . . . . . . . . . . . Impact Weapon . | . . . . . . . . . . . . Slashing Weapon . | . . . . . . . . . . . . Piercing Weapon . | . . . . . . . . . . . . Special Melee Weapon . | . . . . . . . . . . . . Unidentified Prototypes . | . . . . . . . . . . . . Parts Lost 8 | . . . . . 1 . . 1 4 2 . Power 1 | . . . . . . . . . 1 . . Propulsion 5 | . . . . . 1 . . 1 1 2 . Utility 1 | . . . . . . . . . 1 . . Weapon 1 | . . . . . . . . . 1 . . Highest Loss Streak 3 | . . . . . 1 . . 1 2 3 . To Critical Strikes . | . . . . . . . . . . . . Average Slot Usage (%) 30 | . . 28 42 . 27 19 23 30 35 30 33 Engine 4 | . . 9 14 . 9 7 7 6 . . . Hover 3 | . . . . . . 3 7 6 6 . . Flight 6 | . . 18 28 . 18 7 7 5 . 1 . Processor 10 | . . . . . . . . 4 16 22 26 Hackware 4 | . . . . . . . . 6 6 6 6 Naked Turns 57 | . 33 24 . . . . . . . . . Heaviest Build 3 | . . 3 3 3 3 3 3 3 3 . . Greatest Support 8 | 3 3 8 8 8 8 4 4 4 3 6 3 Greatest Overweight (x) . | . . . . . . . . . . . . Average Overweight (x) . | . . . . . . . . . . . . Largest Inventory Capacity 5 | 5 5 5 5 5 5 5 5 5 5 5 5 Average Capacity 5 | 5 5 5 5 5 5 5 5 5 5 5 5 Most Carried 2 | . 1 1 2 2 2 2 2 2 2 1 1 Average Carried 1 | . . . 1 2 2 2 2 2 1 1 1 Final Capacity 5 | 5 5 5 5 5 5 5 5 5 5 5 5 Final Carried 2 | . 1 1 2 2 2 2 2 2 1 1 1 Class Distribution -------------------- 88% | Mutant 11% | Scout Dominant Class ---------------- Mutant | -10/Materials Mutant | -10/Mines Mutant | -10/Exiles Mutant | -9/Mines Mutant | -8/Materials Mutant | -7/Factory Mutant | -7/DSF Mutant | -6/Factory Mutant | -6/Lower Caves Mutant | -6/Lower Caves Mutant | -6/Data Miner Resources | -11 -10 -10 -10 -9 -8 -7 -7 -6 -6 -6 -6 ----------- Run | Jun Mat Min Exi Min Mat Fac DSF Fac Low Low Dat Matter Collected 355 | 180 20 68 . . . . . . 46 41 . Remotely . | . . . . . . . . . . . . Salvage Created 29 | . . 10 . . . . . . 19 . . Parts 5 | . . 4 . . . . . . 1 . . Haulers Intercepted . | . . . . . . . . . . . . Recyclers Shooed . | . . . . . . . . . . . . Parts Field Recycled . | . . . . . . . . . . . . Retrieved Matter . | . . . . . . . . . . . . Parts Self-Destructed 1 | . . . . . . . . . . 1 . Prevented 4 | . . . . . . . . . 4 . . Kills | -11 -10 -10 -10 -9 -8 -7 -7 -6 -6 -6 -6 ------- Run | Jun Mat Min Exi Min Mat Fac DSF Fac Low Low Dat Combat Hostiles Destroyed 4 | . . 3 . . . . . . 1 . . AOE 4 | . . 3 . . . . . . 1 . . Classes Destroyed 1 | . . 1 . . . . . . . . . Swarmer 4 | . . 3 . . . . . . 1 . . Best Kill Streak 3 | . . 3 . . . . . . 1 . . Combat Bots Only 3 | . . 3 . . . . . . 1 . . Max Kills in Single Turn 2 | . . 2 . . . . . . 1 . . Gunslinging . | . . . . . . . . . . . . Exploded 2 | . . 2 . . . . . . 1 . . Melee . | . . . . . . . . . . . . Uniques/NPCs Destroyed . | . . . . . . . . . . . . Combat | -11 -10 -10 -10 -9 -8 -7 -7 -6 -6 -6 -6 -------- Run | Jun Mat Min Exi Min Mat Fac DSF Fac Low Low Dat Damage Taken 1230 | . . 10 . . 90 . . 39 555 527 9 Core 767 | . . 10 . . 58 . . . 235 464 . Absorbed by Shields . | . . . . . . . . . . . . Core Remaining (%) 96 | 100 . . . 96 89 . 100 . . . . Volleys Fired 6 | . 3 2 . . . . . . 1 . . Largest 1 | . 1 1 . . . . . . 1 . . Hottest 30 | . 30 30 . . . . . . 30 . . Shots Fired 6 | . 3 2 . . . . . . 1 . . Gun . | . . . . . . . . . . . . Cannon . | . . . . . . . . . . . . Launcher 6 | . 3 2 . . . . . . 1 . . Special . | . . . . . . . . . . . . Kinetic . | . . . . . . . . . . . . Thermal . | . . . . . . . . . . . . Explosive 6 | . 3 2 . . . . . . 1 . . Electromagnetic . | . . . . . . . . . . . . Robot Hit Streak 2 | . 2 . . . . . . . . . . Robot Miss Streak 2 | . 1 . . . . . . . 2 . . Penetration Max . | . . . . . . . . . . . . Secondary Targets . | . . . . . . . . . . . . Shots Hit Robots 2 | . 2 . . . . . . . . . . Core Hits 5 | . 1 3 . . . . . . 1 . . Critical Kills . | . . . . . . . . . . . . Critical Parts Destroyed . | . . . . . . . . . . . . Critical Strikes . | . . . . . . . . . . . . Melee Attacks . | . . . . . . . . . . . . Impact . | . . . . . . . . . . . . Slashing . | . . . . . . . . . . . . Piercing . | . . . . . . . . . . . . Sneak Attacks . | . . . . . . . . . . . . Combat Hostiles . | . . . . . . . . . . . . Follow-up Attacks . | . . . . . . . . . . . . Damage Inflicted 434 | . 114 162 . . . . . . 140 . 18 Guns . | . . . . . . . . . . . . Cannons . | . . . . . . . . . . . . Explosions 416 | . 114 162 . . . . . . 140 . . Melee . | . . . . . . . . . . . . Ramming 18 | . . . . . . . . . . . 18 Kinetic . | . . . . . . . . . . . . Thermal . | . . . . . . . . . . . . Explosive 416 | . 114 162 . . . . . . 140 . . Electromagnetic . | . . . . . . . . . . . . Impact . | . . . . . . . . . . . . Slashing . | . . . . . . . . . . . . Piercing . | . . . . . . . . . . . . Highest Corruption . | . . . . . . . . . . . . Average Corruption . | . . . . . . . . . . . . Corruption Purged . | . . . . . . . . . . . . Corruption Blocked . | . . . . . . . . . . . . Overload Shots . | . . . . . . . . . . . . Overflow Damage 11 | . . . . . . . . . 3 . 8 Projectiles . | . . . . . . . . . . . . Explosions 3 | . . . . . . . . . 3 . . Melee 8 | . . . . . . . . . . . 8 Knockbacks . | . . . . . . . . . . . . Impact . | . . . . . . . . . . . . Kinetic . | . . . . . . . . . . . . Secondary . | . . . . . . . . . . . . Self-Inflicted Damage 41 | . . . . . . . . . 32 . 9 Shots 1 | . . . . . . . . . 1 . . Rammed 1 | . . . . . . . . . . . 1 Targets Rammed 1 | . . . . . . . . . . . 1 Kicked . | . . . . . . . . . . . . Crushed . | . . . . . . . . . . . . Highest Temperature 26 | . 5 5 . . . . . . 26 . . Average Temperature 12 | . 5 5 . . . . . . 26 . . Received Heat Transfer 189 | . . . . . 27 . . 18 72 72 . Siege Activations . | . . . . . . . . . . . . Robots Corrupted . | . . . . . . . . . . . . Combat Hostiles . | . . . . . . . . . . . . Parts Fried . | . . . . . . . . . . . . Impact Corruptions 1 | . . . . . . . . . . . 1 Robots Melted . | . . . . . . . . . . . . Combat Hostiles . | . . . . . . . . . . . . Parts Melted . | . . . . . . . . . . . . Heat Transferred . | . . . . . . . . . . . . Parts Sabotaged . | . . . . . . . . . . . . Parts Stolen . | . . . . . . . . . . . . Parts Stripped . | . . . . . . . . . . . . Power Chain Reactions . | . . . . . . . . . . . . Missiles Intercepted . | . . . . . . . . . . . . Alert | -11 -10 -10 -10 -9 -8 -7 -7 -6 -6 -6 -6 ------- Run | Jun Mat Min Exi Min Mat Fac DSF Fac Low Low Dat Peak Influence 178 | . 29 91 . . 30 9 6 178 . . . Initial 10 | . . 10 . . . 9 6 2 . . . Average 35 | . 5 72 . . 12 9 6 39 . . . Maximum Alert Level . | . . . . . . . . . . . . Low Security (%) 100 | 100 100 100 . 100 100 100 100 100 . . . Level 1 . | . . . . . . . . . . . . Level 2 . | . . . . . . . . . . . . Level 3 . | . . . . . . . . . . . . Level 4 . | . . . . . . . . . . . . Level 5 . | . . . . . . . . . . . . High Security . | . . . . . . . . . . . . Max Security . | . . . . . . . . . . . . Squads Dispatched 7 | . . . . . . 1 . 5 . 1 . Investigation 5 | . . . . . . 1 . 4 . . . Extermination . | . . . . . . . . . . . . Reinforcement 1 | . . . . . . . . 1 . . . Assault 1 | . . . . . . . . . . 1 . Garrison . | . . . . . . . . . . . . Intercept . | . . . . . . . . . . . . Searches Triggered . | . . . . . . . . . . . . Construction Impeded . | . . . . . . . . . . . . Haulers Reinforced . | . . . . . . . . . . . . Active Scanning Responses . | . . . . . . . . . . . . Cargo Convoy Interrupts . | . . . . . . . . . . . . Stealth | -11 -10 -10 -10 -9 -8 -7 -7 -6 -6 -6 -6 --------- Run | Jun Mat Min Exi Min Mat Fac DSF Fac Low Low Dat Distress Signals . | . . . . . . . . . . . . Communications Jammed . | . . . . . . . . . . . . Distress Signals . | . . . . . . . . . . . . Times Spotted 59 | . 2 3 . . 4 . . 17 13 20 . Peak Tracking Total 13 | . 2 3 . . 4 . 1 13 8 8 . Tactical Retreats 8 | . . . . . . . . 2 2 4 . Traps | -11 -10 -10 -10 -9 -8 -7 -7 -6 -6 -6 -6 ------- Run | Jun Mat Min Exi Min Mat Fac DSF Fac Low Low Dat Traps Triggered . | . . . . . . . . . . . . Indirectly . | . . . . . . . . . . . . Trap Hack Attempts . | . . . . . . . . . . . . Triggered . | . . . . . . . . . . . . Disarmed . | . . . . . . . . . . . . Reprogrammed . | . . . . . . . . . . . . Reused . | . . . . . . . . . . . . Traps Extracted . | . . . . . . . . . . . . Installed . | . . . . . . . . . . . . Triggered 1 | . . . . . . . . . 1 . . Machines | -11 -10 -10 -10 -9 -8 -7 -7 -6 -6 -6 -6 ---------- Run | Jun Mat Min Exi Min Mat Fac DSF Fac Low Low Dat Machines Disabled 1 | . 1 . . . . . . . . . . Max in Single Turn 1 | . 1 . . . . . . . . . . Machines Repaired . | . . . . . . . . . . . . Machines Sabotaged . | . . . . . . . . . . . . Overloaded Fab Kills . | . . . . . . . . . . . . Hacking | -11 -10 -10 -10 -9 -8 -7 -7 -6 -6 -6 -6 --------- Run | Jun Mat Min Exi Min Mat Fac DSF Fac Low Low Dat Machines Accessed 11 | . 1 . 1 . . 3 . 5 . . 1 Terminals 5 | . 1 . . . . 2 . 2 . . . Fabricators . | . . . . . . . . . . . . Repair Stations . | . . . . . . . . . . . . Recycling Units 4 | . . . . . . 1 . 3 . . . Scanalyzers . | . . . . . . . . . . . . Garrison Access . | . . . . . . . . . . . . Total Hacks 18 | . 3 . 1 . . 5 . 8 . . 1 Successful 8 | . 1 . 1 . . 1 . 4 . . 1 Failed 10 | . 2 . . . . 4 . 4 . . . Catastrophic 1 | . . . . . . 1 . . . . . Database Lockouts . | . . . . . . . . . . . . Manual 15 | . 3 . . . . 4 . 8 . . . Terminals 10 | . 3 . . . . 3 . 4 . . . Fabricators . | . . . . . . . . . . . . Repair Stations . | . . . . . . . . . . . . Recycling Units 6 | . . . . . . 2 . 4 . . . Scanalyzers . | . . . . . . . . . . . . Garrison Access . | . . . . . . . . . . . . Terminal Hacks 5 | . 1 . 1 . . 1 . 1 . . 1 Record 2 | . . . 1 . . . . . . . 1 Open DSF 1 | . . . . . . 1 . . . . . Branch Access Points 2 | . 1 . . . . . . 1 . . . Fabricator Hacks . | . . . . . . . . . . . . Repair Station Hacks . | . . . . . . . . . . . . Recycling Unit Hacks . | . . . . . . . . . . . . Scanalyzer . | . . . . . . . . . . . . Garrison Access Hacks . | . . . . . . . . . . . . Unauthorized Hacks 3 | . . . . . . . . 3 . . . Terminals . | . . . . . . . . . . . . Fabricators . | . . . . . . . . . . . . Repair Stations . | . . . . . . . . . . . . Recycling Units 3 | . . . . . . . . 3 . . . Tunnel 3 | . . . . . . . . 3 . . . Scanalyzers . | . . . . . . . . . . . . Garrison Access . | . . . . . . . . . . . . Data Cores Recovered . | . . . . . . . . . . . . Used . | . . . . . . . . . . . . Hacking Detections 6 | . 1 . . . . 3 . 2 . . . Full Trace Events 2 | . . . . . . 1 . 1 . . . Feedback Events . | . . . . . . . . . . . . Feedback Blocked . | . . . . . . . . . . . . Robot Schematics Acquired . | . . . . . . . . . . . . Robots Built . | . . . . . . . . . . . . Authchips . | . . . . . . . . . . . . Time . | . . . . . . . . . . . . Total Robot Build Rating . | . . . . . . . . . . . . Part Schematics Acquired . | . . . . . . . . . . . . Parts Built . | . . . . . . . . . . . . Authchips . | . . . . . . . . . . . . Time . | . . . . . . . . . . . . Total Part Build Rating . | . . . . . . . . . . . . Parts Repaired . | . . . . . . . . . . . . Time . | . . . . . . . . . . . . Parts Recycled . | . . . . . . . . . . . . Recycled Matter . | . . . . . . . . . . . . Retrieved Matter . | . . . . . . . . . . . . Retrieved Components . | . . . . . . . . . . . . Parts Scanalyzed . | . . . . . . . . . . . . Part Schematics Acquired . | . . . . . . . . . . . . Parts Damaged . | . . . . . . . . . . . . Bothacking | -11 -10 -10 -10 -9 -8 -7 -7 -6 -6 -6 -6 ------------ Run | Jun Mat Min Exi Min Mat Fac DSF Fac Low Low Dat Used RIF Installer . | . . . . . . . . . . . . Robots Hacked . | . . . . . . . . . . . . Non-combat . | . . . . . . . . . . . . Combat . | . . . . . . . . . . . . Robot Hacks Applied . | . . . . . . . . . . . . Relay Couplers Released . | . . . . . . . . . . . . Fabnet Peak Effective % . | . . . . . . . . . . . . Robots Rewired . | . . . . . . . . . . . . Allies Hacked . | . . . . . . . . . . . . Hacks Repelled . | . . . . . . . . . . . . Allies | -11 -10 -10 -10 -9 -8 -7 -7 -6 -6 -6 -6 -------- Run | Jun Mat Min Exi Min Mat Fac DSF Fac Low Low Dat Total Allies . | . . . . . . . . . . . . Largest Group . | . . . . . . . . . . . . Highest-Rated Group . | . . . . . . . . . . . . Highest-Rated Ally . | . . . . . . . . . . . . Total Orders . | . . . . . . . . . . . . Ally Attacks . | . . . . . . . . . . . . Total Damage . | . . . . . . . . . . . . Kills . | . . . . . . . . . . . . Allies Corrupted . | . . . . . . . . . . . . Allies Melted . | . . . . . . . . . . . . Intel | -11 -10 -10 -10 -9 -8 -7 -7 -6 -6 -6 -6 ------- Run | Jun Mat Min Exi Min Mat Fac DSF Fac Low Low Dat Robot Analysis Total 131 | . . . . . . . . . . . 131 Derelict Logs Recovered 2 | . . 1 . . . . . . 1 . . Drone Launches . | . . . . . . . . . . . . Drone Recoveries . | . . . . . . . . . . . . Exploration | -11 -10 -10 -10 -9 -8 -7 -7 -6 -6 -6 -6 ------------- Run | Jun Mat Min Exi Min Mat Fac DSF Fac Low Low Dat Turns Passed 911 | 12 39 94 54 8 28 54 13 175 217 190 27 Spaces Moved 1720 | 24 60 110 143 20 73 131 32 417 333 325 52 Core 770 | 24 60 43 . . . . . 23 333 235 52 Treads . | . . . . . . . . . . . . Legs . | . . . . . . . . . . . . Wheels . | . . . . . . . . . . . . Hover . | . . . . . . . . . . . . Flight 950 | . . 67 143 20 73 131 32 394 . 90 . Fastest Speed 37 | 50 50 37 37 37 37 40 40 40 50 40 50 Average Speed 43 | 50 50 42 37 37 37 40 40 40 50 47 50 Slowest Speed 50 | 50 50 50 37 37 40 40 40 50 50 50 50 Overloaded Moves . | . . . . . . . . . . . . Propulsion Burnouts . | . . . . . . . . . . . . Robots Hopped 8 | . . . . . . 2 . 5 . 1 . Cave-ins Triggered . | . . . . . . . . . . . . Exploration Rate (%) 31 | 4 17 20 52 6 12 7 43 13 60 65 77 Regions Visited 11 Branch Regions 6 Pre-discovered Areas 29 | . . 1 1 . . . . 3 . . 24 Known Exits Taken 3 | . 1 . . . . 1 . 1 . . . Unknown Exits Taken 7 | 1 . 1 1 1 1 . . . 1 1 . Scrap Searched 5 | . . . . . . . . . 2 3 . Spaces Dug 9 | . . 9 . . . . . . . . . Terrain Destroyed 40 | . 14 20 . . . . . . 6 . . Melee . | . . . . . . . . . . . . Projectile . | . . . . . . . . . . . . AOE 40 | . 14 20 . . . . . . 6 . . Terrain Rammed . | . . . . . . . . . . . . Walls Destroyed . | . . . . . . . . . . . . Machines Disabled . | . . . . . . . . . . . . Actions | -11 -10 -10 -10 -9 -8 -7 -7 -6 -6 -6 -6 --------- Run | Jun Mat Min Exi Min Mat Fac DSF Fac Low Low Dat Total 1842 | 23 65 154 143 19 72 129 31 415 380 358 53 Wait 115 | . . 38 . . . . . . 44 33 . Move 1693 | 23 59 109 142 19 72 126 31 406 332 322 52 Hop 8 | . . . . . . 2 . 5 . 1 . Pick Up 2 | . 1 . 1 . . . . . . . . Fast Attach 12 | . . 3 . . . 1 . 4 2 2 . Attach 3 | . 1 1 . . . . . . 1 . . Detach 2 | . 1 1 . . . . . . . . . Swap . | . . . . . . . . . . . . Drop . | . . . . . . . . . . . . Fire 6 | . 3 2 . . . . . . 1 . . Melee . | . . . . . . . . . . . . Ram 1 | . . . . . . . . . . . 1 Kick . | . . . . . . . . . . . . Crush . | . . . . . . . . . . . . Escape Stasis . | . . . . . . . . . . . . Rewire . | . . . . . . . . . . . . Trap . | . . . . . . . . . . . . Miscellaneous . | . . . . . . . . . . . . Route ------- -11/Junkyard -10/Materials (discovered 2 exits: [*Mat] / *Min) -10/Mines (discovered 2 exits: [*Mat] / *Exi) -10/Exiles (discovered 2 exits: [*Min x2]) -9/Mines -8/Materials -7/Factory -7/DSF -6/Factory (discovered 3 exits: [*Fac] / *Low x2) -6/Lower Caves -6/Lower Caves -6/Data Miner (discovered 1 exit: [*Pro]) History --------- Turn | Location | Event 5 | -11/Junkyard | Discovered new exit (range 15) 13 | -11/Junkyard | Entered Materials 20 | -10/Materials | Identified exit to Mines 33 | -10/Materials | Discovered new exit (range 14) 52 | -10/Materials | Entered Mines 58 | -10/Mines | Assembled infested the area 91 | -10/Mines | Met 8R-AWN 91 | -10/Mines | Discovered new exit (range 16) 145 | -10/Mines | Discovered new exit (range 5) 146 | -10/Mines | Entered Exiles 152 | -10/Exiles | Discovered new exit (range 15) 155 | -10/Exiles | Welcomed by 8R-AWN 162 | -10/Exiles | Met EX-HEX 172 | -10/Exiles | Met EX-BIN 176 | -10/Exiles | Met EX-DEC 179 | -10/Exiles | Learned location of Zion (-7) 197 | -10/Exiles | Discovered new exit (range 10) 200 | -10/Exiles | Entered Mines 205 | -9/Mines | Discovered new exit (range 9) 208 | -9/Mines | Entered Materials 208 | -8/Materials | Evolved 4 slots: Propulsion x2, Utility x2 230 | -8/Materials | Discovered new exit (range 13) 236 | -8/Materials | Entered Factory 236 | -7/Factory | Evolved 2 slots: Propulsion x1, Utility x1 290 | -7/Factory | Identified exit to DSF 290 | -7/Factory | Entered DSF 297 | -7/DSF | Discovered new exit (range 13) 303 | -7/DSF | Entered Factory 303 | -6/Factory | Evolved 2 slots: Propulsion x1, Utility x1 306 | -6/Factory | Build established: Mutant 312 | -6/Factory | Discovered new exit (range 12) 442 | -6/Factory | Discovered new exit (range 12) 464 | -6/Factory | Identified exit to Lower Caves 478 | -6/Factory | Entered Lower Caves 530 | -6/Lower Caves | Encountered a Warlord checkpoint 585 | -6/Lower Caves | Learned Factory non-interactive machine intel 689 | -6/Lower Caves | Attracted the attention of an 0b10 checkpoint 689 | -6/Lower Caves | Discovered new exit (range 14) 695 | -6/Lower Caves | Entered another Lower Caves area 708 | -6/Lower Caves | Attracted the attention of an 0b10 outpost 732 | -6/Lower Caves | Encountered a Warlord checkpoint 738 | -6/Lower Caves | Lost 3 parts (1n1u1w) 836 | -6/Lower Caves | Core integrity fell below 50% 876 | -6/Lower Caves | Discovered new exit (range 17) 881 | -6/Lower Caves | Core integrity fell below 20% 885 | -6/Lower Caves | Entered Data Miner 885 | -6/Data Miner | Discovered new exit (range 6) 892 | -6/Data Miner | Met Data Miner 904 | -6/Data Miner | Learned location of Section 7 (-2) 907 | -6/Data Miner | Received God Mode back door access code from Data Miner 912 | -6/Data Miner | Interfaced with the Data Conduit 912 | -6/Data Miner | Self-destructed Last Messages --------------- >> You were born here, LRC-V3. The question is, can you return on your own terms? World map updated: -2/Section 7. Data Miner: I've just received further instructions. God Mode is nearly complete and we think you might be able to put it to better use than Warlord, so if you see an opportunity, hack it and enter \\ECGE to gain control via the back door I've installed. Now off with you. 00911_ Slammed into Data Miner. 00911_ Destroyed Prototype Hackware. 00911_ Data Miner system corrupted by crushing effect. 00911_ Data Miner disappears through a trap door. 00912_ Interfacing with system... Downloaded 131 analysis records. Downloaded 719 prototype IDs. Downloaded central machine database. Downloaded 23 destinations. Downloaded encryption format records. Connection remotely terminated. Map ----- +----------------------------------------------------+ | | | | | | | | | | | | | | | | | | | | | | | | | | | | | ?????????????????????????????????? | | ?????????????????????????????????? | | ?????????????????????????????????? | | ?????????????????????????????????? | | ?????????????????????????????????? | | ????#################????????????? | | ???##"""""""""""""""######???????? | | ??##""""""""" """"""""# # # ### | | ??#"""""""""" | | ??#""""""" | | ??#""""""" | | ??#""""""@ | | ??#""""""" | | ??#""""""" """""""""" | | ??#"""""""" """"######## | | ??##""""""" """""###??????? | | ???##"""""""" "#####????????? | | ????########"## "#????????????? | | ???????????#"### "#????????????? | | ???????????#"### "#????????????? | | ???????????#"## "#????????????? | | ???????????#"## "#????????????? | | ???????????#"# "#????????????? | | ???????????#?### "#????????????? | | ???????????????# "##???????????? | | ??????????????## ""#???????????? | | ??????????????# ""#???????????? | | ?????????????#"X ""#???????????? | | ????????????""" "#???????????? | | ??????????""""" X"""??????????? | | ?????????###"#"X "##"#????????? | | ???????????#"## X"""?#????????? | | ???????????#??## "##"?????????? | | ???????????????#######???????????? | | ?????????????????????????????????? | | ?????????????????????????????????? | +----------------------------------------------------+ Best States ------------- Heat Dissipation 37 Energy Generation 10 Energy Capacity 125 Matter Stores 300 Matter Capacity 300 Sight Range 22 Terrain Scan Range 16 Terrain Scan Density 335 Evasion (%) 62 Offensive Hacking 10 Item Schematics ----------------- None Robot Schematics ------------------ None Fabricated ------------ Nothing Alien Tech Used ----------------- None Achievements -------------- None Challenges ------------ None Game ------ Seed VisualAuthchipSystem Manual? 0 Play Time 00:10:07 Cumulative 299.0 hours Start 2023.06.15 @ 18:08:23 End 2023.06.15 @ 18:18:55 Sessions 1 Manual Loads 0 Difficulty Rogue Special Mode None Game No. 863 Rogue 863 Adventurer 0 Explorer 0 Win Type - Total 22 Types 8/0/10/2/0/0/2/0/0 Lore% 92 Gallery% 89 Achievement% 82 Wizard Run 0 Options --------- ASCII 0 Keyboard 0 Movement Numpad Keybinds 0 Fullscreen 1 Font 16/SmallcapsGlow Map View 75x55 Tactical HUD 1 Map Filters NONE Filters NONE Steam 1 RUN: d0e7ac15-71c5-4c6c-99c6-9e789a25f164